fUST/lending_fUST_20251024
["ID","MTS","AMOUNT","RATE_DAILY","PERIOD"]
[392278057,1761301114225,567.14864063,0.00019199,2]
[392278058,1761301116222,567.14864062,0.00019274,2]
[392278059,1761301144973,300.0,0.00019297,2]
[392278061,1761301167021,1027.84906056,0.00019199,2]
[392278074,1761301201712,199.0,0.00019297,2]
[392278075,1761301203676,300.0,0.00019297,2]
[392278076,1761301204031,1200.0,0.00019297,2]
[392278077,1761301209241,151.0,0.00019287,2]
[392278078,1761301215902,221.88543242,0.00019287,2]
[392278079,1761301263777,300.0,0.00019297,2]
[392278080,1761301286846,2824.65476707,0.00019297,2]
[392278081,1761301286870,593.14547079,0.00019297,2]
[392278082,1761301302649,158.391,0.00019287,2]
[392278083,1761301324121,300.0,0.00019297,2]
[392278084,1761301355635,172.629925,0.0001842,2]
[392278085,1761301383590,300.0,0.00019297,2]
[392278086,1761301443729,300.0,0.00019297,2]
[392278087,1761301454688,340.28918438,0.00019199,2]
[392278088,1761301456648,340.28918437,0.00019208,2]
[392278089,1761301458643,340.28918437,0.00019216,2]
[392278090,1761301460640,340.28918437,0.00019225,2]
[392278091,1761301462638,340.28918437,0.00019233,2]
[392278092,1761301479656,337.92,0.00019288,3]
[392278093,1761301487039,899.36792799,0.00019199,2]
[392278094,1761301498806,500.0,0.00019297,2]
[392278095,1761301499028,500.0,0.00019297,2]
[392278096,1761301503148,300.0,0.00019297,2]
[392278097,1761301504943,1200.0,0.00019297,2]
[392278111,1761301509818,500.0,0.00019297,2]
[392278112,1761301509961,284.53134616,0.00019297,2]
[392278113,1761301510007,500.0,0.00019297,2]
[392278114,1761301510080,200.5914091,0.00019297,2]
[392278115,1761301512509,221.88543242,0.00019288,2]
[392278116,1761301512992,259.48809924,0.00019297,2]
[392278117,1761301513482,500.0,0.00019297,2]
[392278118,1761301515248,151.0,0.00019288,2]
[392278119,1761301516644,119.61346744,0.00019297,2]
[392278120,1761301516669,73.33575062,0.00019297,2]
[392278121,1761301519323,562.43992744,0.00019297,2]
[392278122,1761301520869,179.94,0.00019288,3]
[392278123,1761301528629,500.0,0.00019297,2]
[392278124,1761301528687,327.78431728,0.00019297,2]
[392278125,1761301528792,172.21568272,0.00019297,2]
[392278126,1761301528861,500.0,0.00019297,2]
[392278127,1761301531428,500.0,0.00019297,2]
[392278128,1761301531638,539.82,0.00019288,3]
[392278131,1761301534800,150.0,0.00019099,2]
[392278132,1761301535880,500.0,0.00019297,2]
[392278133,1761301535935,437.56007256,0.00019297,2]
[392278134,1761301547119,2278.5334919,0.000192,2]
[392278135,1761301551295,500.0,0.00019297,2]
[392278136,1761301551324,500.0,0.00019297,2]
[392278137,1761301551353,500.0,0.00019297,2]
[392278138,1761301551383,500.0,0.00019297,2]
[392278139,1761301551409,530.53226819,0.00019297,2]
[392278140,1761301551436,500.0,0.00019297,2]
[392278141,1761301551480,247.84848929,0.00019297,2]
[392278142,1761301551503,164.5523801,0.00019297,2]
[392278143,1761301560331,389.0,0.00019247,2]
[392278144,1761301564413,500.0,0.00019297,2]
[392278145,1761301564754,500.0,0.00019297,2]
[392278146,1761301564783,500.0,0.00019297,2]
[392278147,1761301564812,545.00588555,0.00019297,2]
[392278148,1761301564840,500.0,0.00019297,2]
[392278149,1761301564875,500.0,0.00019297,2]
[392278150,1761301564911,500.0,0.00019297,2]
[392278151,1761301564939,500.0,0.00019297,2]
[392278152,1761301564980,500.0,0.00019297,2]
[392278153,1761301565056,581.54620764,0.00019297,2]
[392278154,1761301565250,389.0,0.00019252,2]
[392278155,1761301565690,300.0,0.00019297,2]
[392278166,1761301575705,192.94921806,0.00019297,2]
[392278167,1761301581280,500.0,0.00019297,2]
[392278168,1761301581312,285.13673331,0.00019297,2]
[392278169,1761301581347,500.0,0.00019297,2]
[392278170,1761301581385,500.0,0.00019297,2]
[392278171,1761301581432,500.0,0.00019297,2]
[392278172,1761301581491,500.0,0.00019297,2]
[392278173,1761301581576,500.0,0.00019297,2]
[392278174,1761301582443,152.81957534,0.00019297,2]
[392278175,1761301582466,347.18042466,0.00019297,2]
[392278176,1761301582500,500.0,0.00019297,2]
[392278177,1761301582550,500.0,0.00019297,2]
[392278178,1761301582608,500.0,0.00019297,2]
[392278179,1761301582662,188.07627258,0.00019297,2]
[392278180,1761301588481,1000.0,0.00019298,2]
[392278181,1761301589584,1019.81325145,0.00019298,2]
[392278182,1761301602175,500.0,0.00019297,2]
[392278183,1761301602204,500.0,0.00019297,2]
[392278184,1761301602235,500.0,0.00019297,2]
[392278185,1761301602262,500.0,0.00019297,2]
[392278186,1761301602297,500.0,0.00019297,2]
[392278187,1761301602326,500.0,0.00019297,2]
[392278188,1761301602353,500.0,0.00019297,2]
[392278189,1761301602381,486.24265951,0.00019297,2]
[392278190,1761301602410,500.0,0.00019297,2]
[392278191,1761301602446,463.76634049,0.00019297,2]
[392278192,1761301614093,500.0,0.00019297,2]
[392278193,1761301614124,494.93105131,0.00019297,2]
[392278194,1761301614151,5.06894869,0.00019297,2]
[392278195,1761301614194,500.0,0.00019297,2]
[392278196,1761301614227,500.0,0.00019297,2]
[392278197,1761301614256,500.0,0.00019297,2]
[392278198,1761301614312,500.0,0.00019297,2]
[392278199,1761301614368,500.0,0.00019297,2]
[392278200,1761301614424,600.009,0.00019297,2]
[392278202,1761301623971,300.0,0.00019297,2]
[392278203,1761301624099,500.0,0.00019297,2]
[392278204,1761301624135,500.0,0.00019297,2]
[392278205,1761301624176,500.0,0.00019297,2]
[392278206,1761301624214,500.0,0.00019297,2]
[392278207,1761301624250,558.36017906,0.00019297,2]
[392278208,1761301624280,500.0,0.00019297,2]
[392278209,1761301624313,500.0,0.00019297,2]
[392278210,1761301624612,500.0,0.00019297,2]
[392278211,1761301624646,577.48483885,0.00019297,2]
[392278212,1761301624676,500.0,0.00019297,2]
[392278213,1761301624706,500.0,0.00019297,2]
[392278214,1761301624766,500.0,0.00019297,2]
[392278218,1761301642855,459.0870334,0.00019297,2]
[392278219,1761301642878,40.9129666,0.00019297,2]
[392278220,1761301642907,187.22184256,0.00019297,2]
[392278221,1761301642941,500.0,0.00019297,2]
[392278222,1761301642971,500.0,0.00019297,2]
[392278223,1761301642998,500.0,0.00019297,2]
[392278224,1761301643037,500.0,0.00019297,2]
[392278225,1761301643067,500.0,0.00019297,2]
[392278226,1761301643101,456.4643417,0.00019297,2]
[392278227,1761301643134,500.0,0.00019297,2]
[392278228,1761301643168,500.0,0.00019297,2]
[392278229,1761301643213,500.0,0.00019297,2]
[392278230,1761301643317,500.0,0.00019297,2]
[392278240,1761301658111,1200.0,0.00019297,2]
[392278241,1761301660677,500.0,0.00019297,2]
[392278242,1761301660706,500.0,0.00019297,2]
[392278243,1761301660757,500.0,0.00019297,2]
[392278244,1761301660788,500.0,0.00019297,2]
[392278245,1761301660820,500.0,0.00019297,2]
[392278246,1761301660848,500.0,0.00019297,2]
[392278247,1761301660877,500.0,0.00019297,2]
[392278248,1761301660907,115.41084914,0.00019297,2]
[392278249,1761301660930,384.58915086,0.00019297,2]
[392278250,1761301660973,500.0,0.00019297,2]
[392278251,1761301661008,552.93854688,0.00019297,2]
[392278254,1761301678511,500.0,0.00019297,2]
[392278255,1761301678570,500.0,0.00019297,2]
[392278256,1761301678625,500.0,0.00019297,2]
[392278257,1761301678681,500.0,0.00019297,2]
[392278258,1761301678736,250.027,0.00019297,2]
[392278259,1761301683335,300.0,0.00019297,2]
[392278280,1761301728562,150.0,0.00019083,2]
[392278281,1761301743153,300.0,0.00019297,2]
[392278292,1761301788251,786.946937,0.00019198,2]
[392278293,1761301794234,150.0,0.0001909,2]
[392278294,1761301801955,300.0,0.00019297,2]
[392278295,1761301803110,300.0,0.00019297,2]
[392278296,1761301803479,300.0,0.00019297,2]
[392278297,1761301803671,300.0,0.00019297,2]
[392278298,1761301804004,1200.0,0.00019297,2]
[392278299,1761301806920,300.0,0.00019297,2]
[392278300,1761301807373,1519.02232794,0.000192,2]
[392278301,1761301812552,406.48603732,0.00019178,2]
[392278302,1761301812574,131.10726916,0.00019178,2]
[392278331,1761301832030,-623.2579438,0.00019298,2]
[392278344,1761301832145,-217918.93243775,0.00019298,2]
[392278346,1761301832156,-52011.97617685,0.00019298,2]
[392278348,1761301832166,-530.42849012,0.00019298,2]
[392278350,1761301832175,-216870.83464803,0.000193,2]
[392278389,1761301837866,-2281.00405952,0.000193,2]
[392279162,1761301851903,-2615.89457814,0.000193,2]
[392279163,1761301851973,-10000.01,0.000193,2]
[392279164,1761301853977,-10000.01,0.000193,2]
[392279165,1761301854106,-10000.01,0.000193,2]
[392279166,1761301854238,-10000.01,0.000193,2]
[392279167,1761301854888,-10000.01,0.000193,2]
[392279168,1761301863800,-150.0,0.00019082,2]
[392279169,1761301863837,-9700.01,0.00019198,2]
[392279170,1761301864008,-10000.01,0.00019198,2]
[392279171,1761301871971,-519.81992032,0.0001914,2]
[392279172,1761301872005,-383.48,0.00019188,3]
[392279173,1761301872062,-8193.41015936,0.00019198,2]
[392279174,1761301872088,-10000.01,0.00019198,2]
[392279175,1761301885036,1028.5049064,0.00019198,2]
[392279176,1761301893268,500.0,0.000191,2]
[392279177,1761301893711,500.0,0.00019173,2]
[392279178,1761301902875,500.0,0.00019173,2]
[392279179,1761301923294,300.0,0.00019197,2]
[392279180,1761301924799,150.0,0.00019104,2]
[392279181,1761301927747,454.53291964,0.00018787,2]
[392279182,1761301929232,818.15925535,0.00018886,2]
[392279183,1761301931201,1454.50534284,0.00018986,2]
[392279184,1761301933529,2272.66459819,0.00019086,2]
[392279185,1761301935244,2021.64297758,0.00019186,2]
[392279186,1761301935267,1250.99404382,0.00019186,2]
[392279187,1761301935390,157.6976018,0.0001842,2]
[392279188,1761301970055,216.27904401,0.00019197,2]
[392279189,1761301972137,205.29110602,0.00019197,2]
[392279190,1761301972497,500.0,0.00019197,2]
[392279191,1761301972778,500.0,0.00019197,2]
[392279192,1761301972853,193.72710177,0.00019197,2]
[392279193,1761301973268,500.0,0.00019197,2]
[392279194,1761301973354,305.47051893,0.00019197,2]
[392279195,1761301974571,500.0,0.00019197,2]
[392279196,1761301974603,500.0,0.00019197,2]
[392279197,1761301974636,500.0,0.00019197,2]
[392279198,1761301974669,500.0,0.00019197,2]
[392279199,1761301974709,500.0,0.00019197,2]
[392279200,1761301974736,424.55871428,0.00019197,2]
[392279201,1761301974763,500.0,0.00019197,2]
[392279202,1761301974794,500.0,0.00019197,2]
[392279203,1761301974821,500.0,0.00019197,2]
[392279204,1761301974849,500.0,0.00019197,2]
[392279205,1761301974877,500.0,0.00019197,2]
[392279206,1761301974914,393.00515519,0.00019197,2]
[392279207,1761301974942,352.98671418,0.00019197,2]
[392279208,1761301974965,147.01328582,0.00019197,2]
[392279209,1761301975003,500.0,0.00019197,2]
[392279210,1761301984033,300.0,0.00019197,2]
[392279211,1761301988606,272.0,0.0001913,2]
[392279212,1761301990502,150.0,0.00019079,2]
[392279213,1761301991760,272.0,0.00018432,2]
[392279214,1761301994601,5000.0,0.00019178,2]
[392279215,1761301995155,272.0,0.00019034,2]
[392279216,1761302002470,272.0,0.00018629,2]
[392279217,1761302012375,272.0,0.00018415,2]
[392279218,1761302023165,272.0,0.00018413,2]
[392279219,1761302026443,272.0,0.0001863,2]
[392279220,1761302032879,272.0,0.00018423,2]
[392279221,1761302041798,174.35744522,0.00019156,2]
[392279222,1761302043505,300.0,0.00019197,2]
[392279223,1761302067728,1012.68155196,0.00019156,2]
[392279224,1761302072960,239.957717,0.00019156,2]
[392279225,1761302072986,494.82253971,0.00019156,2]
[392279226,1761302098143,498.27201348,0.0001881,2]
[392279227,1761302100088,896.88962426,0.0001896,2]
[392279228,1761302101973,1594.47044314,0.00019111,2]
[392279229,1761302102914,1200.0,0.00019197,2]
[392279230,1761302104483,300.0,0.00019197,2]
[392279231,1761302124838,359.88,0.00019188,3]
[392279232,1761302131141,4655.67537941,0.00019196,2]
[392279233,1761302131163,10000.01,0.00019196,2]
[392279234,1761302131184,10000.01,0.00019196,2]
[392279235,1761302131206,10000.01,0.00019196,2]
[392279236,1761302131228,10000.01,0.00019196,2]
[392279237,1761302131251,10000.01,0.00019196,2]
[392279238,1761302131274,10000.01,0.00019196,2]
[392279239,1761302131297,10000.01,0.00019196,2]
[392279240,1761302131320,10000.01,0.00019196,2]
[392279241,1761302131343,10000.01,0.00019196,2]
[392279242,1761302161007,-10000.01,0.00019196,2]
[392279243,1761302161140,-10000.01,0.00019196,2]
[392279244,1761302161251,-10000.01,0.00019196,2]
[392279245,1761302161399,-10000.01,0.00019196,2]
[392279246,1761302161552,-10000.01,0.00019196,2]
[392279247,1761302161669,-10000.01,0.00019196,2]
[392279248,1761302163225,-300.0,0.00019195,2]
[392279249,1761302163262,-9400.01,0.00019196,2]
[392279250,1761302163470,-10000.01,0.00019196,2]
[392279251,1761302163649,-10000.01,0.00019196,2]
[392279252,1761302163776,-10000.01,0.00019196,2]
[392279253,1761302166728,-10000.01,0.00019196,2]
[392279254,1761302166745,-10000.01,0.00019196,2]
[392279255,1761302166768,-10000.01,0.00019196,2]
[392279256,1761302166781,-10000.01,0.00019196,2]
[392279257,1761302166878,-10000.01,0.00019196,2]
[392279258,1761302178295,-205.64574969,0.00018907,2]
[392279259,1761302178322,-205.64574969,0.00019098,2]
[392279260,1761302178375,-9177.42700124,0.00019196,2]
[392279261,1761302178429,-10000.01,0.00019196,2]
[392279262,1761302178641,-10000.01,0.00019196,2]
[392279263,1761302178731,-10000.01,0.00019196,2]
[392279264,1761302178837,-10000.01,0.00019196,2]
[392279266,1761302200572,5000.0,0.00019028,2]
[392279267,1761302204359,5000.01,0.00018197,2]
[392279268,1761302204382,5251.0562268,0.00018197,2]
[392279270,1761302214355,1337.958957,0.00013699,2]
[392279271,1761302216658,1727.82032761,0.00018422,2]
[392279272,1761302216959,1683.17448859,0.00018848,2]
[392279273,1761302216979,44.64583902,0.00018848,2]
[392279275,1761302223535,5000.0,0.00019028,2]
[392279278,1761302225941,-1727.82032761,0.00019079,2]
[392279279,1761302243255,295.31850487,0.00019056,2]
[392279280,1761302246644,2316.35020364,0.00019079,2]
[392279281,1761302279595,10000.0,0.0003013,120]
[392279285,1761302307718,525.0,0.00018718,2]
[392279286,1761302326187,-327.72285965,0.00019096,2]
[392279287,1761302336039,205.64574969,0.00019016,2]
[392279288,1761302342203,-327.72285965,0.00019098,2]
[392279289,1761302345049,1727.82032762,0.0001908,2]
[392279290,1761302368959,5000.0,0.00019099,2]
[392279291,1761302380818,-675.12103464,0.000191,2]
[392279292,1761302380845,-327.72285965,0.000191,2]
[392279293,1761302380872,-653.86969548,0.000191,2]
[392279294,1761302380904,-525.0,0.00019135,2]
[392279295,1761302380931,-526.0011111,0.00019156,2]
[392279296,1761302380958,-500.0,0.00019173,2]
[392279297,1761302380985,-500.0,0.00019173,2]
[392279298,1761302381332,-5000.0,0.00019178,2]
[392279299,1761302381418,-2522.4131902,0.00019178,2]
[392279300,1761302381445,-301.02,0.00019187,3]
[392279301,1761302381476,-150.51,0.00019187,3]
[392279302,1761302381504,-451.58,0.00019188,3]
[392279303,1761302381531,-1200.0,0.00019195,2]
[392279304,1761302381557,-300.0,0.00019195,2]
[392279305,1761302381608,-500.0,0.00019195,2]
[392279306,1761302381636,-500.0,0.00019195,2]
[392279307,1761302381663,-640.09046133,0.00019195,2]
[392279308,1761302381693,-500.0,0.00019195,2]
[392279309,1761302381723,-500.0,0.00019195,2]
[392279310,1761302381751,-500.0,0.00019195,2]
[392279311,1761302381780,-202.36570558,0.00019195,2]
[392279312,1761302381809,-500.0,0.00019195,2]
[392279313,1761302381842,-500.0,0.00019195,2]
[392279314,1761302381873,-500.0,0.00019195,2]
[392279315,1761302382026,-500.0,0.00019195,2]
[392279316,1761302382057,-500.0,0.00019195,2]
[392279317,1761302382084,-500.0,0.00019195,2]
[392279318,1761302382112,-500.0,0.00019195,2]
[392279319,1761302382141,-500.0,0.00019195,2]
[392279320,1761302382174,-500.0,0.00019195,2]
[392279321,1761302382203,-500.0,0.00019195,2]
[392279322,1761302382231,-500.0,0.00019195,2]
[392279323,1761302382262,-500.0,0.00019195,2]
[392279324,1761302382291,-500.0,0.00019195,2]
[392279325,1761302382398,-500.0,0.00019195,2]
[392279326,1761302382426,-500.0,0.00019195,2]
[392279327,1761302382455,-500.0,0.00019195,2]
[392279328,1761302382484,-500.0,0.00019195,2]
[392279329,1761302382515,-500.0,0.00019195,2]
[392279330,1761302382546,-500.0,0.00019195,2]
[392279331,1761302382577,-500.0,0.00019195,2]
[392279332,1761302382610,-500.0,0.00019195,2]
[392279333,1761302382642,-500.0,0.00019195,2]
[392279334,1761302382828,-500.0,0.00019195,2]
[392279335,1761302382991,-427.75969401,0.00019195,2]
[392279336,1761302383020,-500.0,0.00019195,2]
[392279337,1761302383051,-500.0,0.00019195,2]
[392279338,1761302383077,-500.0,0.00019195,2]
[392279339,1761302383103,-454.66952913,0.00019195,2]
[392279340,1761302383130,-211.19744426,0.00019195,2]
[392279341,1761302383174,-500.0,0.00019195,2]
[392279342,1761302383211,-500.0,0.00019195,2]
[392279343,1761302383243,-500.0,0.00019195,2]
[392279344,1761302383273,-500.0,0.00019195,2]
[392279345,1761302383304,-312.7566652,0.00019195,2]
[392279346,1761302383453,-187.2433348,0.00019195,2]
[392279347,1761302383482,-317.01251283,0.00019195,2]
[392279348,1761302383924,150.0,0.00018906,2]
[392279349,1761302385686,-500.0,0.00019195,2]
[392279350,1761302386075,-5997.54439429,0.00019196,2]
[392279351,1761302386097,-10000.01,0.00019196,2]
[392279352,1761302386125,-10000.01,0.00019196,2]
[392279353,1761302386144,-10000.01,0.00019196,2]
[392279354,1761302390770,-969.57589145,0.00019097,2]
[392279355,1761302390811,-8060.8582171,0.00019196,2]
[392279356,1761302390883,-10000.01,0.00019196,2]
[392279357,1761302390973,-10000.01,0.00019196,2]
[392279358,1761302391079,-10000.01,0.00019196,2]
[392279359,1761302391181,-10000.01,0.00019196,2]
[392279360,1761302401923,-969.57589145,0.00018906,2]
[392279361,1761302401951,-250.0,0.0001912,2]
[392279362,1761302402005,-7560.8582171,0.00019196,2]
[392279363,1761302402138,-10000.01,0.00019196,2]
[392279364,1761302402264,-10000.01,0.00019196,2]
[392279365,1761302410216,-500.0,0.00019,2]
[392279366,1761302415017,5000.0,0.00019099,2]
[392279367,1761302421769,165.015504,0.00018568,2]
[392279368,1761302423418,1678.9699051,0.00019099,2]
[392279369,1761302439924,2156.0245909,0.00019099,2]
[392279370,1761302439947,2843.9754091,0.00019099,2]
[392279371,1761302451049,150.0,0.00019074,2]
[392279372,1761302463016,5000.0,0.00019099,2]
[392279373,1761302466543,1727.82032762,0.00019027,2]
[392279374,1761302486384,278.21426328,0.00019099,2]
[392279375,1761302486407,4721.78573672,0.00019099,2]
[392279376,1761302509658,5000.0,0.00019099,2]
[392279377,1761302530901,168.0,0.00019091,2]
[392279378,1761302532405,110.22426328,0.00019099,2]
[392279379,1761302532426,4889.77573672,0.00019099,2]
[392279380,1761302535750,168.0,0.0001886,2]
[392279381,1761302549323,295.0,0.00018872,2]
[392279382,1761302552603,295.0,0.00019036,2]
[392279383,1761302555512,4352.23426328,0.00019099,2]
[392279384,1761302555534,647.76573672,0.00019099,2]
[392279385,1761302578555,5000.0,0.00019099,2]
[392279386,1761302601855,4352.24426328,0.00019099,2]
[392279387,1761302601879,647.75573672,0.00019099,2]
[392279388,1761302624458,5000.0,0.00019099,2]
[392279389,1761302647014,5000.0,0.00019099,2]
[392279390,1761302670559,0.01,0.00019099,2]
[392279391,1761302670584,1163.24050534,0.00019099,2]
[392279392,1761302704755,1120.88681827,0.00019093,2]
[392279393,1761302751793,7715.88267639,0.00018332,2]
[392279394,1761302751814,10000.01,0.00018332,2]
[392279395,1761302751835,10000.01,0.00018332,2]
[392279396,1761302756547,-263.60160635,0.00018332,2]
[392279397,1761302760291,-270.26244025,0.00018332,2]
[392279398,1761302761831,-255.2579271,0.00018332,2]
[392279399,1761302766203,-757.39671083,0.00018149,2]
[392279400,1761302766230,-300.0,0.00018331,2]
[392279401,1761302771749,-203.51778503,0.00018332,2]
[392279402,1761302773911,-166.0,0.00018332,2]
[392279403,1761302775451,-284.45855306,0.00018332,2]
[392279404,1761302776948,-174.69777517,0.00018332,2]
[392279406,1761302778642,-324.82904481,0.00018332,2]
[392279407,1761302781661,-172.5,0.00018332,2]
[392279408,1761302783186,-186.54607078,0.00018332,2]
[392279409,1761302786401,-614.3278276,0.00018332,2]
[392279410,1761302786564,-8237.47084162,0.00018332,2]
[392279411,1761302786855,-4381.95985636,0.00018332,2]
[392279412,1761302786896,-1236.09028728,0.00018332,2]
[392279413,1761302786925,-341.77701539,0.000184,2]
[392279414,1761302786998,-894.31327189,0.0001899,2]
[392279415,1761302787014,-341.77701539,0.0001899,2]
[392279416,1761302787032,-6844.27539466,0.0001899,2]
[392279417,1761302787283,-10000.01,0.0001899,2]
[392279418,1761302789485,-1512.54922885,0.00018149,2]
[392279419,1761302789519,-6974.9115423,0.0001899,2]
[392279420,1761302789623,-10000.01,0.0001899,2]
[392279421,1761302789749,-10000.01,0.0001899,2]
[392279422,1761302789870,-10000.01,0.0001899,2]
[392279423,1761302790007,-10000.01,0.0001899,2]
[392279424,1761302790146,-10000.01,0.0001899,2]
[392279425,1761302793689,-10000.01,0.0001899,2]
[392279426,1761302793714,-10000.01,0.0001899,2]
[392279427,1761302793833,-4944.64277576,0.0001899,2]
[392279428,1761302793871,-110.72444848,0.00019093,2]
[392279429,1761302793931,-99.27435782,0.00019093,2]
[392279430,1761302793960,-195.77170111,0.00019096,2]
[392279431,1761302793990,-450.08068976,0.00019103,2]
[392279432,1761302794019,-151.0,0.00019135,2]
[392279433,1761302794049,-151.0,0.00019135,2]
[392279434,1761302794078,-151.0,0.00019135,2]
[392279435,1761302794109,-151.0,0.00019135,2]
[392279436,1761302794139,-175.13092885,0.00019135,2]
[392279437,1761302794170,-515.48108888,0.00019154,2]
[392279438,1761302794201,-1200.0,0.00019172,2]
[392279439,1761302794230,-151.0,0.00019187,2]
[392279440,1761302794261,-221.88543242,0.00019187,2]
[392279441,1761302794290,-150.51,0.00019188,3]
[392279442,1761302794318,-451.53,0.00019188,3]
[392279443,1761302794548,-300.0,0.00019189,2]
[392279444,1761302794576,-300.0,0.00019189,2]
[392279445,1761302794605,-70.68160232,0.00019189,2]
[392279446,1761302795123,-229.31839768,0.00018989,2]
[392279448,1761302800604,-270.68160232,0.00018989,2]
[392279449,1761302800634,-500.0,0.00018989,2]
[392279450,1761302800662,-500.0,0.00018989,2]
[392279451,1761302800689,-500.0,0.00018989,2]
[392279452,1761302800716,-182.23227348,0.00018989,2]
[392279453,1761302800743,-365.82135705,0.00018989,2]
[392279454,1761302800770,-500.0,0.00018989,2]
[392279455,1761302800796,-500.0,0.00018989,2]
[392279456,1761302800823,-500.0,0.00018989,2]
[392279457,1761302800852,-500.0,0.00018989,2]
[392279458,1761302800881,-500.0,0.00018989,2]
[392279459,1761302801108,-362.5395343,0.00018989,2]
[392279460,1761302806716,-137.4604657,0.00018989,2]
[392279461,1761302806744,-500.0,0.00018989,2]
[392279462,1761302806771,-500.0,0.00018989,2]
[392279463,1761302806801,-500.0,0.00018989,2]
[392279464,1761302806832,-500.0,0.00018989,2]
[392279465,1761302806860,-500.0,0.00018989,2]
[392279466,1761302806889,-500.0,0.00018989,2]
[392279467,1761302806919,-500.0,0.00018989,2]
[392279468,1761302806949,-500.0,0.00018989,2]
[392279469,1761302806980,-500.0,0.00018989,2]
[392279470,1761302807009,-225.0890686,0.00018989,2]
[392279471,1761302807191,-274.9109314,0.00018989,2]
[392279472,1761302825438,-153.171209,0.00019198,7]
[392279473,1761302825463,-152.731337,0.00019198,7]
[392279474,1761302825486,-151.0,0.00019198,7]
[392279475,1761302825507,-151.0,0.00019198,7]
[392279476,1761302825528,-151.0,0.00019198,7]
[392279477,1761302825549,-151.0,0.00019198,7]
[392279478,1761302825569,-288.110252,0.00019198,7]
[392279479,1761302825589,-151.0,0.00019198,7]
[392279480,1761302825609,-188.733566,0.00019198,7]
[392279481,1761302825629,-188.733566,0.00019198,7]
[392279482,1761302825650,-188.733566,0.00019198,7]
[392279483,1761302825670,-188.733566,0.00019198,7]
[392279484,1761302825691,-151.0,0.00019198,7]
[392279485,1761302825710,-151.0,0.00019198,7]
[392279486,1761302825730,-151.0,0.00019198,7]
[392279487,1761302825750,-151.0,0.00019198,7]
[392279488,1761302825770,-151.0,0.00019198,7]
[392279489,1761302825789,-1590.831106,0.00019198,7]
[392279490,1761302825809,-1590.831106,0.00019198,7]
[392279491,1761302825829,-1590.831106,0.00019198,7]
[392279492,1761302825849,-1590.831106,0.00019198,7]
[392279493,1761302825870,-151.0,0.00019198,7]
[392279494,1761302825890,-151.0,0.00019198,7]
[392279495,1761302825912,-151.0,0.000193,7]
[392279496,1761302825932,-151.0,0.00019395,7]
[392279497,1761302825954,-157.783989,0.00019395,7]
[392279498,1761302825978,-151.0,0.00019395,7]
[392279499,1761302825998,-151.0,0.00019395,7]
[392279500,1761302826019,-151.0,0.00019395,7]
[392279501,1761302826038,-188.733566,0.00019395,7]
[392279502,1761302826058,-188.733566,0.00019395,7]